fUST/lending_fUST_20251231
["ID","MTS","AMOUNT","RATE_DAILY","PERIOD"]
[400141737,1767149446303,-2157.52772885,0.00016162,2]
[400141739,1767149446312,-3106.83992954,0.00016162,2]
[400141741,1767149446321,-4228.75434854,0.00016162,2]
[400141742,1767149446331,-1051.12022417,0.0001623,2]
[400141744,1767149446340,-4200.27641579,0.0001623,2]
[400141745,1767149446349,-3473.54022535,0.0001623,2]
[400141747,1767149446360,-500.0,0.00016259,2]
[400141749,1767149446370,-1897.36213629,0.00016263,2]
[400141750,1767149446379,-4811.63,0.00016269,2]
[400141752,1767149446388,-3000.0,0.00016438,2]
[400141754,1767149446400,-3000.0,0.00016438,2]
[400141755,1767149446410,-200.0,0.00016473,2]
[400141756,1767149446419,-3081.75382253,0.0001656,2]
[400141757,1767149446429,-3500.0,0.0001656,2]
[400141758,1767149446438,-341.86675576,0.0001656,2]
[400141759,1767149446447,-3522.87177869,0.0001656,2]
[400141760,1767149446456,-576.89571839,0.0001656,2]
[400141761,1767149446466,-3500.0,0.0001656,2]
[400141762,1767149446475,-2800.51799825,0.0001656,2]
[400141763,1767149446484,-3500.0,0.0001656,2]
[400141764,1767149446493,-952.19024228,0.0001656,2]
[400141765,1767149446503,-3500.0,0.0001656,2]
[400141766,1767149446512,-1000.0,0.00016601,2]
[400141767,1767149446522,-352.5590083,0.00016711,2]
[400141768,1767149446531,-34790.2177988,0.00016711,2]
[400141769,1767149446540,-225.35307316,0.00016959,2]
[400141770,1767149446549,-257.54636933,0.00016959,2]
[400141771,1767149446558,-402.41620208,0.00016959,2]
[400141772,1767149446568,-3500.0,0.00016986,2]
[400141773,1767149446577,-3500.0,0.00016986,2]
[400141774,1767149446586,-378.35903762,0.00017013,2]
[400141775,1767149446596,-432.41032871,0.00017013,2]
[400141776,1767149446605,-2563.92346459,0.00017084,2]
[400141777,1767149446615,-716.30033327,0.00017108,2]
[400141778,1767149446625,-4000.0,0.00017108,2]
[400141779,1767149446635,-1511.18997277,0.00017108,2]
[400141780,1767149446645,-4000.0,0.00017108,2]
[400141781,1767149446654,-500.0,0.00017115,2]
[400141782,1767149446663,-1182.62181526,0.00017287,2]
[400141783,1767149446673,-500.0,0.00017414,2]
[400141784,1767149446683,-500.0,0.00017414,2]
[400141785,1767149446695,-500.0,0.00017414,2]
[400141786,1767149446704,-500.0,0.00017414,2]
[400141787,1767149446715,-500.0,0.00017414,2]
[400141788,1767149446724,-500.0,0.00017414,2]
[400141789,1767149446737,-500.0,0.00017414,2]
[400141790,1767149446746,-500.0,0.00017414,2]
[400141791,1767149446755,-500.0,0.00017414,2]
[400141792,1767149446765,-500.0,0.00017414,2]
[400141793,1767149446775,-151.0,0.00017414,2]
[400141794,1767149446784,-500.0,0.00017414,2]
[400141795,1767149446793,-500.0,0.00017414,2]
[400141796,1767149446803,-500.0,0.00017414,2]
[400141797,1767149446814,-500.0,0.00017414,2]
[400141798,1767149446824,-2487.15318209,0.00017414,2]
[400141799,1767149446833,-514.84070869,0.00017414,2]
[400141800,1767149446842,-6014.54,0.00017431,2]
[400141801,1767149446851,-4000.0,0.00017534,2]
[400141802,1767149446860,-4000.0,0.00017534,2]
[400141803,1767149446870,-1152.0,0.00017603,2]
[400141804,1767149446879,-1897.36213629,0.00017639,2]
[400141805,1767149446888,-3538.3121025,0.00017656,2]
[400141806,1767149446897,-1513.30440151,0.00017656,2]
[400141807,1767149446907,-4609.0,0.00017755,2]
[400141808,1767149446916,-23638.72634166,0.000178,3]
[400141809,1767149446925,-278.6904084,0.00017842,2]
[400141810,1767149446934,-151.0,0.00017962,2]
[400141811,1767149446945,-151.0,0.00017962,2]
[400141812,1767149446953,-151.0,0.00017962,2]
[400141813,1767149446963,-151.68521952,0.00017962,2]
[400141814,1767149446972,-2579.17784983,0.00017962,2]
[400141815,1767149446982,-533.88981491,0.00017962,2]
[400141816,1767149446991,-500.0,0.00018016,2]
[400141817,1767149447000,-401.93040096,0.00018053,2]
[400141818,1767149447009,-4500.0,0.00018082,2]
[400141819,1767149447018,-1000.0,0.00018261,2]
[400141820,1767149447028,-244.0,0.00018261,2]
[400141821,1767149447037,-2267.11605205,0.0001851,2]
[400141822,1767149447047,-553.64373807,0.0001851,2]
[400141823,1767149447058,-7217.45,0.00018593,2]
[400141824,1767149447066,-151.0,0.0001863,2]
[400141825,1767149447075,-5000.0,0.0001863,2]
[400141826,1767149447085,-2466.51510913,0.00018735,2]
[400141827,1767149447094,-499.794244,0.00018766,2]
[400141828,1767149447103,-499.794244,0.00018766,2]
[400141829,1767149447113,-499.794244,0.00018766,2]
[400141830,1767149447121,-499.794244,0.00018766,2]
[400141831,1767149447131,-302.90913937,0.000189,2]
[400141832,1767149447140,-23638.71,0.000189,3]
[400141833,1767149447149,-302.90913937,0.000189,2]
[400141834,1767149447158,-322.73616062,0.0001894,2]
[400141835,1767149447167,-183.7875074,0.0001894,2]
[400141836,1767149447176,-500.0,0.00018964,2]
[400141837,1767149447185,-1000.0,0.00019037,2]
[400141838,1767149447194,-1000.0,0.00019037,2]
[400141839,1767149447203,-1000.0,0.00019037,2]
[400141840,1767149447213,-1000.0,0.00019037,2]
[400141841,1767149447227,-1000.0,0.00019037,2]
[400141842,1767149447242,-1000.0,0.00019037,2]
[400141843,1767149447257,-1000.0,0.00019037,2]
[400141844,1767149447273,-1000.0,0.00019037,2]
[400141845,1767149447285,-1000.0,0.00019037,2]
[400141846,1767149447298,-1003.4854603,0.00019037,2]
[400141847,1767149447312,-152.0,0.00019037,2]
[400141848,1767149447327,-163.29711316,0.00019037,2]
[400141849,1767149447342,-152.31585058,0.00019037,2]
[400141850,1767149447356,-161.5212068,0.00019037,2]
[400141851,1767149447370,-346.0,0.00019037,2]
[400141852,1767149447384,-490.96701053,0.00019037,2]
[400141853,1767149447396,-346.0,0.00019037,2]
[400141854,1767149447410,-574.12855637,0.00019058,2]
[400141855,1767149447422,-8793.92042388,0.00019078,2]
[400141856,1767149447435,-219.435139,0.00019078,2]
[400141857,1767149447448,-219.435139,0.00019078,2]
[400141858,1767149447461,-219.435139,0.00019078,2]
[400141859,1767149447472,-219.435139,0.00019078,2]
[400141860,1767149447484,-302.90913937,0.00019089,2]
[400141861,1767149447496,-302.90913937,0.00019089,2]
[400141862,1767149447509,-533.2,0.00019178,2]
[400141863,1767149447523,-533.2,0.00019178,2]
[400141864,1767149447535,-533.2,0.00019178,2]
[400141865,1767149447548,-533.2,0.00019178,2]
[400141866,1767149447562,-533.2,0.00019178,2]
[400141867,1767149447577,-533.2,0.00019178,2]
[400141868,1767149447588,-533.2,0.00019178,2]
[400141869,1767149447599,-533.2,0.00019178,2]
[400141870,1767149447610,-533.2,0.00019178,2]
[400141871,1767149447623,-533.2,0.00019178,2]
[400141872,1767149447638,-533.2,0.00019178,2]
[400141873,1767149447650,-533.2,0.00019178,2]
[400141874,1767149447661,-533.2,0.00019178,2]
[400141875,1767149447673,-533.2,0.00019178,2]
[400141876,1767149447687,-533.2,0.00019178,2]
[400141877,1767149447699,-533.2,0.00019178,2]
[400141878,1767149447710,-533.2,0.00019178,2]
[400141879,1767149447721,-533.2,0.00019178,2]
[400141880,1767149447732,-533.2,0.00019178,2]
[400141881,1767149447744,-533.2,0.00019178,2]
[400141882,1767149447756,-533.2,0.00019178,2]
[400141883,1767149447767,-533.2,0.00019178,2]
[400141884,1767149447779,-533.2,0.00019178,2]
[400141885,1767149447790,-533.42551435,0.00019178,2]
[400141886,1767149447802,-500.0,0.00019178,2]
[400141887,1767149447813,-500.0,0.00019178,2]
[400141888,1767149447825,-500.0,0.00019178,2]
[400141889,1767149447836,-500.0,0.00019178,2]
[400141890,1767149447847,-500.0,0.00019178,2]
[400141891,1767149447858,-626.56663844,0.00019178,2]
[400141892,1767149447869,-500.0,0.00019178,2]
[400141893,1767149447880,-500.0,0.00019178,2]
[400141894,1767149447891,-500.0,0.00019178,2]
[400141895,1767149447903,-500.0,0.00019178,2]
[400141896,1767149447914,-500.0,0.00019178,2]
[400141897,1767149447926,-500.0,0.00019178,2]
[400141898,1767149447937,-500.0,0.00019178,2]
[400141899,1767149447949,-500.0,0.00019178,2]
[400141900,1767149447960,-500.0,0.00019178,2]
[400141901,1767149447972,-500.0,0.00019178,2]
[400141902,1767149447984,-500.0,0.00019178,2]
[400141903,1767149447995,-500.0,0.00019178,2]
[400141904,1767149448007,-500.0,0.00019178,2]
[400141905,1767149448018,-500.0,0.00019178,2]
[400141906,1767149448029,-500.0,0.00019178,2]
[400141907,1767149448040,-500.0,0.00019178,2]
[400141908,1767149448051,-500.0,0.00019178,2]
[400141909,1767149448063,-500.0,0.00019178,2]
[400141910,1767149448074,-500.0,0.00019178,2]
[400141911,1767149448086,-151.0,0.00019178,2]
[400141912,1767149448097,-151.0,0.00019178,2]
[400141913,1767149448109,-151.0,0.00019178,2]
[400141914,1767149448120,-151.0,0.00019178,2]
[400141915,1767149448131,-488.094127,0.00019178,2]
[400141916,1767149448143,-488.094127,0.00019178,2]
[400141917,1767149448154,-488.094127,0.00019178,2]
[400141918,1767149448166,-488.094127,0.00019178,2]
[400141919,1767149448177,-150.0,0.00019178,2]
[400141920,1767149448189,-5500.0,0.00019178,2]
[400141921,1767149448200,-160.68,0.000192,2]
[400141922,1767149448211,-1304.0,0.000192,2]
[400141923,1767149448222,-165.41,0.000192,2]
[400141924,1767149448233,-14171.13,0.000192,2]
[400141925,1767149448245,-166.47,0.000192,2]
[400141926,1767149448257,-2252.58784972,0.000192,2]
[400141927,1767149448272,-352.5590083,0.00019202,2]
[400141928,1767149448283,-496.47031563,0.00019205,5]
[400141929,1767149448294,-302.90913937,0.00019278,2]
[400141930,1767149448306,-302.90913937,0.00019278,2]
[400141931,1767149448317,-167224.02527839,0.00019301,2]
[400141932,1767149448328,-488.094127,0.00019301,2]
[400141933,1767149448340,-488.094127,0.00019301,2]
[400141934,1767149448350,-488.094127,0.00019301,2]
[400141935,1767149448360,-488.094127,0.00019301,2]
[400141936,1767149448370,-300.0,0.00019315,2]
[400141937,1767149448380,-1613.0,0.00019321,2]
[400141938,1767149448390,-450.0,0.00019452,2]
[400141939,1767149448401,-302.90913937,0.00019467,2]
[400141940,1767149448411,-302.90913937,0.00019467,2]
[400141941,1767149448421,-3092.0,0.0001953,2]
[400141942,1767149448432,-600.0,0.00019589,2]
[400141943,1767149448442,-595.37131296,0.00019606,2]
[400141944,1767149448451,-302.90913937,0.00019656,2]
[400141945,1767149448461,-302.90913937,0.00019656,2]
[400141946,1767149448643,-556.55106819,0.00019726,2]
[400141947,1767149448660,-3217.98838976,0.00019726,2]
[400141948,1767149448670,-8420.35,0.00019755,2]
[400141949,1767149448681,-236.99747629,0.0001978,2]
[400141950,1767149448690,-223.2,0.00019838,2]
[400141951,1767149448700,-454.36370906,0.00019845,4]
[400141952,1767149448709,-454.36370906,0.00019845,4]
[400141953,1767149448719,-500.0,0.00019848,2]
[400141954,1767149448728,-500.0,0.00019848,2]
[400141955,1767149448738,-500.0,0.00019848,2]
[400141956,1767149448747,-500.0,0.00019848,2]
[400141957,1767149448756,-500.0,0.00019848,2]
[400141958,1767149448766,-500.0,0.00019848,2]
[400141959,1767149448776,-515.62801593,0.00019848,2]
[400141960,1767149448785,-500.0,0.00019962,2]
[400141961,1767149448795,-1003.0,0.0002,2]
[400141962,1767149448804,-1105.62734024,0.0002,2]
[400141963,1767149448814,-1162.7799583,0.0002,2]
[400141964,1767149448823,-418.94279744,0.0002,2]
[400141965,1767149448831,-394.73148624,0.0002,2]
[400141966,1767149448841,-179.55824252,0.0002,2]
[400141967,1767149448850,-454.36370906,0.00020034,4]
[400141968,1767149448859,-454.36370906,0.00020034,4]
[400141969,1767149448868,-448.909279,0.00020053,2]
[400141970,1767149448877,-1000.0,0.00020087,2]
[400141971,1767149448886,-492.0,0.00020087,2]
[400141972,1767149448896,-617.40005154,0.00020154,2]
[400141973,1767149448905,-745.651783,0.00020187,2]
[400141974,1767149448914,-454.36370906,0.00020223,4]
[400141975,1767149448923,-454.36370906,0.00020223,4]
[400141976,1767149448932,-375.44797495,0.00020339,10]
[400141977,1767149448941,-454.36370906,0.00020412,4]
[400141978,1767149448950,-454.36370906,0.00020412,4]
[400141979,1767149448959,-7762.746869,0.00020423,2]
[400141980,1767149448969,-14171.13,0.000205,2]
[400141981,1767149448978,-151.0,0.000205,2]
[400141982,1767149448987,-151.0,0.000205,2]
[400141983,1767149448997,-151.0,0.000205,2]
[400141984,1767149449006,-151.0,0.000205,2]
[400141985,1767149449015,-1182.62181526,0.00020513,2]
[400141986,1767149449024,-3532.091123,0.00020548,2]
[400141987,1767149449033,-317.13148105,0.00020601,4]
[400141988,1767149449042,-453.98526196,0.00020601,4]
[400141989,1767149449051,-1304.0,0.000207,2]
[400141990,1767149449060,-165.41,0.000207,2]
[400141991,1767149449070,-640.24385345,0.00020702,2]
[400141992,1767149449079,-426.59545732,0.00020821,2]
[400141993,1767149449088,-758.39192413,0.00020821,2]
[400141994,1767149449099,-1184.98738145,0.00020821,2]
[400141995,1767149449107,-1706.38182929,0.00020821,2]
[400141996,1767149449117,-207.5247846,0.00020821,2]
[400141997,1767149449126,-373.54461227,0.00020821,2]
[400141998,1767149449135,-664.07931071,0.00020821,2]
[400141999,1767149449144,-1037.62392298,0.00020821,2]
[400142000,1767149449153,-9623.26,0.00020917,2]
[400142001,1767149449162,-203.05,0.00021,2]
[400142002,1767149449171,-30030.19718622,0.00021,2]
[400142003,1767149449181,-499.794244,0.00021,2]
[400142004,1767149449190,-499.794244,0.00021,2]
[400142005,1767149449200,-499.794244,0.00021,2]
[400142006,1767149449209,-499.794244,0.00021,2]
[400142007,1767149449218,-370.4335347,0.00021013,2]
[400142008,1767149449406,-129.5664653,0.00021013,2]
[400142009,1767149449415,-151.0,0.00021045,2]
[400142010,1767149449424,-235.000002,0.00021045,2]
[400142011,1767149449434,-219.435139,0.00021045,2]
[400142012,1767149449442,-219.435139,0.00021045,2]
[400142013,1767149449451,-219.435139,0.00021045,2]
[400142014,1767149449460,-219.435139,0.00021045,2]
[400142015,1767149449469,-162.87546691,0.00021114,2]
[400142016,1767149449480,-8631.04495691,0.00021114,2]
[400142017,1767149449489,-2258.0,0.00021208,2]
[400142018,1767149449499,-663.93287602,0.0002125,2]
[400142019,1767149449508,-1732.102952,0.00021251,2]
[400142020,1767149449517,-223.2,0.00021398,2]
[400142021,1767149449525,-375.44797495,0.00021478,11]
[400142022,1767149449534,-261.27124007,0.00021553,2]
[400142023,1767149449580,-276.88984516,0.00021553,2]
[400142024,1767149449590,-43.99426247,0.00021647,5]
[400142025,1767149449771,-5000.0,0.00013562,2]
[400142026,1767149449781,-11.74930443,0.0001935,2]
[400142027,1767149449791,-371.12484557,0.0001935,2]
[400142028,1767149449819,587.98,0.00012329,2]
[400142029,1767149449934,-877.01350082,0.0001935,2]
[400142030,1767149449946,-11994.80121013,0.0001935,2]
[400142031,1767149449956,-163.0439479,0.00021647,5]
[400142032,1767149449965,-156.47294887,0.00021647,5]
[400142033,1767149449974,-160.0,0.00021673,2]
[400142034,1767149449983,-1041.66666667,0.00021681,2]
[400142035,1767149449992,-352.5590083,0.00021693,2]
[400142036,1767149450001,-23638.71,0.000217,3]
[400142037,1767149450010,-800.0,0.00021714,2]
[400142038,1767149450019,-800.0,0.00021791,2]
[400142039,1767149450029,-688.49839244,0.00021798,2]
[400142040,1767149450038,-3015.18284076,0.00021917,2]
[400142041,1767149450047,-257.68097,0.00021917,2]
[400142042,1767149450056,-3845.811247,0.00021917,2]
[400142043,1767149450065,-168.70842956,0.00021917,2]
[400142044,1767149450074,-303.67517321,0.00021917,2]
[400142045,1767149450083,-539.86697459,0.00021917,2]
[400142046,1767149450093,-843.5421478,0.00021917,2]
[400142047,1767149450102,-192.21703389,0.00021917,2]
[400142048,1767149450111,-345.990661,0.00021917,2]
[400142049,1767149450120,-505.57693631,0.00021917,2]
[400142050,1767149450129,-598.98698811,0.00021917,2]
[400142051,1767149450138,-500.35125499,0.00021917,2]
[400142052,1767149450147,-504.10733238,0.00021917,2]
[400142053,1767149450156,-500.0,0.00021917,2]
[400142054,1767149450165,-526.92284921,0.00021917,2]
[400142055,1767149450174,-489.85090208,0.00021917,2]
[400142056,1767149450183,-505.71200436,0.00021917,2]
[400142057,1767149450192,-500.0,0.00021917,2]
[400142058,1767149450201,-240.64346237,0.00021917,2]
[400142059,1767149450210,-523.70752936,0.00021917,2]
[400142060,1767149450219,-625.94221804,0.00021917,2]
[400142061,1767149450228,-397.81591437,0.00021917,2]
[400142062,1767149450237,-500.0,0.00021917,2]
[400142063,1767149450246,-219.19540566,0.00021917,2]
[400142064,1767149450255,-417.55248059,0.00021917,2]
[400142065,1767149450268,-199.12657408,0.00021917,2]
[400142066,1767149450277,-621.43392376,0.00021917,2]
[400142067,1767149450289,-248.65132653,0.00021917,2]
[400142068,1767149450298,-246.91429969,0.00021917,2]
[400142069,1767149450307,-296.30754401,0.00021917,2]
[400142070,1767149450318,-616.92399388,0.00021917,2]
[400142071,1767149450327,-443.71089455,0.00021917,2]
[400142072,1767149450336,-217.19298908,0.00021917,2]
[400142073,1767149450345,-214.91491184,0.00021917,2]
[400142074,1767149450355,-499.01488879,0.00021917,2]
[400142075,1767149450363,-186.89469257,0.00021917,2]
[400142076,1767149450373,-500.95169093,0.00021917,2]
[400142077,1767149450382,-450.23508925,0.00021917,2]
[400142078,1767149450391,-500.0,0.00021917,2]
[400142079,1767149450400,-410.83742876,0.00021917,2]
[400142080,1767149450409,-478.02804503,0.00021917,2]
[400142081,1767149450419,-313.98654143,0.00021917,2]
[400142082,1767149450428,-334.62159483,0.00021917,2]
[400142083,1767149450437,-500.03884492,0.00021917,2]
[400142084,1767149450446,-242.72728009,0.00021917,2]
[400142085,1767149450455,-455.2726247,0.00021917,2]
[400142086,1767149450464,-494.83489749,0.00021917,2]
[400142087,1767149450473,-501.16688858,0.00021917,2]
[400142088,1767149450482,-310.13806993,0.00021917,2]
[400142089,1767149450491,-505.15489748,0.00021917,2]
[400142090,1767149450499,-616.48101724,0.00021917,2]
[400142091,1767149450509,-195.06127082,0.00021917,2]
[400142092,1767149450518,-166.47995031,0.00021917,2]
[400142093,1767149450527,-204.56494394,0.00021917,2]
[400142094,1767149450536,-164.69774949,0.00021917,2]
[400142095,1767149450547,-502.827251,0.00021917,2]
[400142096,1767149450556,-298.66344688,0.00021917,2]
[400142097,1767149450566,-462.63161978,0.00021917,2]
[400142098,1767149450575,-492.39802988,0.00021917,2]
[400142099,1767149450585,-314.45955403,0.00021917,2]
[400142100,1767149450594,-534.61983309,0.00021917,2]
[400142101,1767149450603,-477.02573693,0.00021917,2]
[400142102,1767149450614,-500.0,0.00021917,2]
[400142103,1767149450626,-500.92084198,0.00021917,2]
[400142104,1767149450636,-215.75777171,0.00021917,2]
[400142105,1767149450645,-242.21450119,0.00021917,2]
[400142106,1767149450654,-161.75271664,0.00021917,2]
[400142107,1767149450665,-252.7139797,0.00021917,2]
[400142108,1767149450674,-266.36276551,0.00021917,2]
[400142109,1767149450683,-353.54128238,0.00021917,2]
[400142110,1767149450693,-1000.0,0.00021917,2]
[400142111,1767149450702,-505.77585882,0.00021917,2]
[400142112,1767149450711,-411.5226101,0.00021917,2]
[400142113,1767149450721,-226.19550324,0.00021917,2]
[400142114,1767149450730,-314.97950925,0.00021917,2]
[400142115,1767149450740,-367.57,0.00021917,2]
[400142116,1767149450749,-500.0,0.00021917,2]
[400142117,1767149450759,-510.22887533,0.00021917,2]
[400142118,1767149450768,-205.16116043,0.00021917,2]
[400142119,1767149450778,-503.81346527,0.00021917,2]
[400142120,1767149450787,-193.85429518,0.00021917,2]
[400142121,1767149450796,-458.4326658,0.00021917,2]
[400142122,1767149450805,-168.98211699,0.00021917,2]
[400142123,1767149450815,-500.0,0.00021917,2]
[400142124,1767149450824,-502.73139361,0.00021917,2]
[400142125,1767149450833,-235.607492,0.00021917,2]
[400142126,1767149450842,-223.90020564,0.00021917,2]
[400142127,1767149450851,-209.01026818,0.00021917,2]
[400142128,1767149450860,-420.84143882,0.00021917,2]
[400142129,1767149450869,-360.72301261,0.00021917,2]
[400142130,1767149450878,-471.64276752,0.00021917,2]
[400142131,1767149450887,-212.74311149,0.00021917,2]
[400142132,1767149450896,-229.28095745,0.00021917,2]
[400142133,1767149450905,-453.45157978,0.00021917,2]
[400142134,1767149450915,-279.8963927,0.00021917,2]
[400142135,1767149450924,-266.22432015,0.00021917,2]
[400142136,1767149450933,-503.97158321,0.00021917,2]
[400142137,1767149450942,-460.4,0.00021917,2]
[400142138,1767149450951,-297.27873842,0.00021917,2]
[400142139,1767149450960,-502.07652659,0.00021917,2]
[400142140,1767149450969,-288.02420199,0.00021917,2]
[400142141,1767149450978,-445.74668126,0.00021917,2]
[400142142,1767149450987,-239.68186209,0.00021917,2]
[400142143,1767149450996,-461.03172215,0.00021917,2]
[400142144,1767149451005,-190.72764292,0.00021917,2]
[400142145,1767149451015,-370.26064922,0.00021917,2]
[400142146,1767149451024,-192.01317014,0.00021917,2]
[400142147,1767149451034,-236.48722868,0.00021917,2]
[400142148,1767149451044,-420.10245485,0.00021917,2]
[400142149,1767149451052,-505.56704884,0.00021917,2]
[400142150,1767149451061,-322.3356331,0.00021917,2]
[400142151,1767149451071,-475.01123891,0.00021917,2]
[400142152,1767149451080,-473.47713162,0.00021917,2]
[400142153,1767149451089,-505.14463557,0.00021917,2]
[400142154,1767149451098,-501.42019883,0.00021917,2]
[400142155,1767149451107,-450.44091694,0.00021917,2]
[400142156,1767149451116,-323.29605567,0.00021917,2]
[400142157,1767149451126,-249.91619638,0.00021917,2]
[400142158,1767149451135,-315.625498,0.00021917,2]
[400142159,1767149451145,-444.93095003,0.00021917,2]
[400142160,1767149451154,-471.06726106,0.00021917,2]
[400142161,1767149451163,-492.07543299,0.00021917,2]
[400142162,1767149451173,-501.13438916,0.00021917,2]
[400142163,1767149451182,-301.76237719,0.00021917,2]
[400142164,1767149451191,-332.03723306,0.00021917,2]
[400142165,1767149451200,-275.92340762,0.00021917,2]
[400142166,1767149451209,-189.99764953,0.00021917,2]
[400142167,1767149451218,-351.17624531,0.00021917,2]
[400142168,1767149451228,-500.31450217,0.00021917,2]
[400142169,1767149451237,-452.8909509,0.00021917,2]
[400142170,1767149451247,-429.75196614,0.00021917,2]
[400142171,1767149451256,-424.73441105,0.00021917,2]
[400142172,1767149451267,-280.5776928,0.00021917,2]
[400142173,1767149451277,-495.8275516,0.00021917,2]
[400142174,1767149451286,-530.6561841,0.00021917,2]
[400142175,1767149451295,-388.90254225,0.00021917,2]
[400142176,1767149451306,-278.87252164,0.00021917,2]
[400142177,1767149451316,-353.79507362,0.00021917,2]
[400142178,1767149451325,-224.27897709,0.00021917,2]
[400142179,1767149451335,-493.91358717,0.00021917,2]
[400142180,1767149451345,-228.27143418,0.00021917,2]
[400142181,1767149451354,-508.47252761,0.00021917,2]
[400142182,1767149451364,-512.82699373,0.00021917,2]
[400142183,1767149451373,-401.74419702,0.00021917,2]
[400142184,1767149451382,-240.63871679,0.00021917,2]
[400142185,1767149451391,-375.17667033,0.00021917,2]
[400142186,1767149451400,-255.54870036,0.00021917,2]
[400142187,1767149451411,-484.56028366,0.00021917,2]
[400142188,1767149451419,-425.72792182,0.00021917,2]
[400142189,1767149451429,-234.33498331,0.00021917,2]
[400142190,1767149451438,-166.8788309,0.00021917,2]
[400142191,1767149451571,-346.52905766,0.00021917,2]
[400142192,1767149451582,-494.63104236,0.00021917,2]
[400142193,1767149451592,-306.95719636,0.00021917,2]
[400142194,1767149451602,-350.88472282,0.00021917,2]
[400142195,1767149451612,-335.63417223,0.00021917,2]
[400142196,1767149451621,-231.13812863,0.00021917,2]
[400142197,1767149451631,-509.12072007,0.00021917,2]
[400142198,1767149451640,-410.00093253,0.00021917,2]
[400142199,1767149451650,-501.28357159,0.00021917,2]
[400142200,1767149451659,-500.0,0.00021917,2]
[400142201,1767149451668,-293.05034295,0.00021917,2]
[400142202,1767149451677,-439.26042852,0.00021917,2]
[400142203,1767149451686,-500.77061581,0.00021917,2]
[400142204,1767149451696,-268.8960386,0.00021917,2]
[400142205,1767149451705,-500.20287395,0.00021917,2]
[400142206,1767149451714,-621.27434624,0.00021917,2]
[400142207,1767149451723,-509.35779907,0.00021917,2]
[400142208,1767149451733,-504.88100054,0.00021917,2]
[400142209,1767149451742,-363.03412122,0.00021917,2]
[400142210,1767149451751,-952.37,0.00021917,2]
[400142211,1767149451760,-171.72456496,0.00021917,2]
[400142212,1767149451770,-317.18425125,0.00021917,2]
[400142213,1767149451779,-228.21786813,0.00021917,2]
[400142214,1767149451788,-430.38421098,0.00021917,2]
[400142215,1767149451797,-504.51330229,0.00021917,2]
[400142216,1767149451806,-579.37601546,0.00021917,2]
[400142217,1767149451815,-500.0,0.00021917,2]
[400142218,1767149451824,-301.70078689,0.00021917,2]
[400142219,1767149451833,-428.85502416,0.00021917,2]
[400142220,1767149451842,-229.93818586,0.00021917,2]
[400142221,1767149451852,-503.73567789,0.00021917,2]
[400142222,1767149451861,-316.21598207,0.00021917,2]
[400142223,1767149451870,-566.6059812,0.00021917,2]
[400142224,1767149451879,-363.76566066,0.00021917,2]
[400142225,1767149451888,-557.39567939,0.00021917,2]
[400142226,1767149451897,-525.64968778,0.00021917,2]
[400142227,1767149451906,-500.0,0.00021917,2]
[400142228,1767149451915,-199.45943565,0.00021917,2]
[400142229,1767149451924,-518.3081957,0.00021917,2]
[400142230,1767149451933,-500.0,0.00021917,2]
[400142231,1767149451943,-355.3743631,0.00021917,2]
[400142232,1767149451952,-452.1954474,0.00021917,2]
[400142233,1767149451961,-524.92123886,0.00021917,2]
[400142234,1767149451970,-567.16155068,0.00021917,2]
[400142235,1767149451979,-512.4312718,0.00021917,2]
[400142236,1767149451988,-271.82436363,0.00021917,2]
[400142237,1767149451998,-372.69833567,0.00021917,2]
[400142238,1767149452007,-427.00692737,0.00021917,2]
[400142239,1767149452016,-610.80658286,0.00021917,2]
[400142240,1767149452025,-516.54845659,0.00021917,2]
[400142241,1767149452035,-581.62899778,0.00021917,2]
[400142242,1767149452045,-404.34206878,0.00021917,2]
[400142243,1767149452055,-543.07145777,0.00021917,2]